bitfinex-derivatives/quotes_BTCF0:USTF0_20250828
["timestamp","ask_amount","ask_price","bid_price","bid_amount"]
[1756417842524,0.03379,112060.0,112050.0,0.99900661]
[1756417842729,1.38780386,112060.0,112050.0,0.99900661]
[1756417844626,0.8134,112060.0,112050.0,1.24900661]
[1756417845124,1.35601386,112060.0,112050.0,1.24900661]
[1756417845727,1.37203386,112060.0,112050.0,1.24900661]
[1756417846630,1.35601386,112060.0,112050.0,1.24900661]
[1756417847124,1.37203386,112060.0,112050.0,1.24900661]
[1756417853230,1.38780386,112060.0,112050.0,0.67900661]
[1756417853439,1.38780386,112060.0,112050.0,0.99900661]
[1756417856040,1.38780386,112060.0,112050.0,0.13639275]
[1756417856240,1.38780386,112060.0,112050.0,0.99900661]
[1756417856541,1.37178386,112060.0,112050.0,0.99900661]
[1756417857340,1.38780386,112060.0,112050.0,0.99900661]
[1756417858441,0.57640386,112060.0,112050.0,0.99900661]
[1756417858643,0.57640386,112060.0,112050.0,1.80968661]
[1756417861151,0.03379,112060.0,112050.0,1.80968661]
[1756417869448,0.03379,112060.0,112050.0,1.48968661]
[1756417869649,0.03379,112060.0,112050.0,1.80968661]
[1756417870344,0.01777,112060.0,112050.0,1.80968661]
[1756417872253,0.01777,112060.0,112050.0,0.94707275]
[1756417872254,0.03379,112060.0,112050.0,0.94707275]
[1756417872454,0.03379,112060.0,112050.0,1.80968661]
[1756417872655,0.56038386,112060.0,112050.0,1.80968661]
[1756417875155,0.002,112060.0,112050.0,2.35230047]
[1756417876948,0.84030925,112070.0,112050.0,2.44353777]
[1756417877154,0.85586925,112070.0,112060.0,0.67129296]
[1756417877349,0.85586925,112070.0,112060.0,0.99129296]
[1756417877754,0.85586925,112070.0,112060.0,0.67129296]
[1756417878757,0.31325539,112070.0,112060.0,0.67129296]
[1756417879058,0.85586925,112070.0,112060.0,0.67129296]
[1756417879456,0.85586925,112070.0,112060.0,0.67229296]
[1756417885360,0.31325539,112070.0,112060.0,0.67229296]
[1756417885563,0.85586925,112070.0,112060.0,0.67229296]
[1756417886861,1.66586925,112070.0,112060.0,0.67229296]
[1756417887158,0.85586925,112070.0,112060.0,0.67229296]
[1756417887354,0.29723539,112070.0,112060.0,0.99229296]
[1756417887756,0.29723539,112070.0,112060.0,1.06533936]
[1756417888861,0.31325539,112070.0,112060.0,1.06533936]
[1756417889160,0.85586925,112070.0,112060.0,1.06533936]
[1756417891856,0.83984925,112070.0,112060.0,1.06533936]
[1756417892160,0.28167539,112070.0,112060.0,1.06533936]
[1756417892460,0.82428925,112070.0,112060.0,1.06533936]
[1756417892662,0.84030925,112070.0,112060.0,1.06533936]
[1756417893960,0.82428925,112070.0,112060.0,1.06533936]
[1756417894463,0.84030925,112070.0,112060.0,1.06533936]
[1756417894860,0.27982,112070.0,112060.0,1.06533936]
[1756417895065,0.82243386,112070.0,112060.0,1.06533936]
[1756417895663,0.2638,112070.0,112060.0,1.06533936]
[1756417896867,1.36859386,112080.0,112060.0,1.15456846]
[1756417897067,1.38400386,112080.0,112070.0,0.58175386]
[1756417898168,1.38400386,112080.0,112070.0,0.67097506]
[1756417899464,1.38500386,112080.0,112070.0,0.67097506]
[1756417900767,1.38600386,112080.0,112070.0,0.67097506]
[1756417901156,1.38600386,112080.0,112070.0,0.1283612]
[1756417901360,1.38600386,112080.0,112070.0,0.1056712]
[1756417907369,1.38600386,112080.0,112070.0,0.0892212]
[1756417907569,1.38600386,112080.0,112070.0,0.1056712]
[1756417911274,1.38600386,112080.0,112070.0,0.1283612]
[1756417913480,1.38600386,112080.0,112070.0,0.67097506]
[1756417914474,1.38600386,112080.0,112070.0,0.1056712]
[1756417914774,1.38600386,112080.0,112070.0,0.64828506]
[1756417914975,0.84339,112080.0,112070.0,0.67097506]
[1756417915178,1.38600386,112080.0,112070.0,0.67097506]
[1756417929788,1.38600386,112080.0,112070.0,0.1283612]
[1756417929990,1.38600386,112080.0,112070.0,0.67097506]
[1756417931991,0.84339,112080.0,112070.0,0.67097506]
[1756417932287,1.38600386,112080.0,112070.0,0.67097506]
[1756417933290,1.38600386,112080.0,112070.0,0.1283612]
[1756417933589,1.38600386,112080.0,112070.0,0.67097506]
[1756417940799,1.38600386,112080.0,112070.0,0.1283612]
[1756417941007,1.38600386,112080.0,112070.0,0.67097506]
[1756417944407,1.38600386,112080.0,112070.0,0.1283612]
[1756417944608,1.38600386,112080.0,112070.0,0.67097506]
[1756417949313,0.84339,112080.0,112070.0,0.67097506]
[1756417949615,1.38600386,112080.0,112070.0,0.1283612]
[1756417949911,1.38600386,112080.0,112070.0,0.67097506]
[1756417950918,0.84339,112080.0,112070.0,0.67097506]
[1756417951112,1.38600386,112080.0,112070.0,0.67097506]
[1756417953418,1.38600386,112080.0,112070.0,0.1283612]
[1756417953612,1.38600386,112080.0,112070.0,0.67097506]
[1756417955119,0.84339,112080.0,112070.0,0.67097506]
[1756417955419,1.38600386,112080.0,112070.0,0.67097506]
[1756417971338,0.84339,112080.0,112070.0,0.67097506]
[1756417971536,1.38600386,112080.0,112070.0,0.67097506]
[1756417973736,0.84339,112080.0,112070.0,0.67097506]
[1756417973938,1.38600386,112080.0,112070.0,0.67097506]
[1756417976041,0.84339,112080.0,112070.0,0.67097506]
[1756417976230,1.38600386,112080.0,112070.0,0.67097506]
[1756417982346,0.57604386,112080.0,112070.0,0.67097506]
[1756417982545,1.38564386,112080.0,112070.0,0.67097506]
[1756417990551,0.84303,112080.0,112070.0,0.67097506]
[1756417990755,1.38564386,112080.0,112070.0,0.67097506]
[1756417993354,0.84303,112080.0,112070.0,0.67097506]
[1756417993751,1.38564386,112080.0,112070.0,0.67097506]
[1756417994657,0.84303,112080.0,112070.0,0.67097506]
[1756417994857,1.38564386,112080.0,112070.0,0.67097506]
[1756417997365,0.84303,112080.0,112070.0,0.67097506]
[1756417997563,1.38564386,112080.0,112070.0,0.67097506]
[1756417999065,0.84303,112080.0,112070.0,0.67097506]
[1756417999257,1.38564386,112080.0,112070.0,0.67097506]
[1756417999457,0.84303,112080.0,112070.0,0.67097506]
[1756418002267,0.84303,112080.0,112070.0,0.1283612]
[1756418002564,0.84203,112080.0,112070.0,0.67097506]
[1756418003064,0.84103,112080.0,112070.0,0.67097506]
[1756418003363,0.84103,112080.0,112070.0,0.67197506]
[1756418005665,0.03143,112080.0,112070.0,0.99197506]
[1756418005866,0.84091,112080.0,112070.0,0.99197506]
[1756418014864,0.03143,112080.0,112070.0,0.99197506]
[1756418015070,0.84083,112080.0,112070.0,0.99197506]
[1756418016267,0.84083,112080.0,112070.0,0.1293612]
[1756418016472,0.84083,112080.0,112070.0,0.99197506]
[1756418020072,0.03143,112080.0,112070.0,0.99197506]
[1756418020267,0.84079,112080.0,112070.0,0.99197506]
[1756418024168,0.03143,112080.0,112070.0,0.99197506]
[1756418026272,0.03143,112080.0,112070.0,0.67197506]
[1756418026578,0.03143,112080.0,112070.0,0.98197506]
[1756418028370,0.01541,112080.0,112070.0,1.79125506]
[1756418031794,0.01541,112080.0,112070.0,0.98197506]
[1756418031983,0.01541,112080.0,112070.0,1.79125506]
[1756418037386,0.01772953,112090.0,112070.0,1.79125506]
[1756418037590,0.03213,112100.0,112090.0,0.1292155]
[1756418037795,0.57474386,112100.0,112090.0,0.04001]
[1756418037984,0.57474386,112100.0,112090.0,0.58262386]
[1756418038185,0.57474386,112100.0,112090.0,0.04001]
[1756418038393,0.57474386,112100.0,112090.0,0.58262386]
[1756418038691,0.03213,112100.0,112090.0,0.58262386]
[1756418038989,0.57474386,112100.0,112090.0,0.58262386]
[1756418039487,0.57874386,112100.0,112090.0,0.58262386]
[1756418039688,0.57874386,112100.0,112090.0,0.67182936]
[1756418039888,0.03613,112100.0,112090.0,0.1292155]
[1756418040089,0.57874386,112100.0,112090.0,0.67182936]
[1756418040590,0.57874386,112100.0,112090.0,0.1292155]
[1756418040887,0.57874386,112100.0,112090.0,0.67182936]
[1756418041286,0.03613,112100.0,112090.0,0.67182936]
[1756418041481,0.57874386,112100.0,112090.0,0.67182936]
[1756418042692,0.03613,112100.0,112090.0,0.67182936]
[1756418042991,0.57874386,112100.0,112090.0,0.67182936]
[1756418043583,0.57874386,112100.0,112090.0,0.1292155]
[1756418043784,0.57874386,112100.0,112090.0,0.67182936]
[1756418044194,0.57874386,112100.0,112090.0,0.1292155]
[1756418044386,0.03613,112100.0,112090.0,0.67182936]
[1756418044582,0.57874386,112100.0,112090.0,0.67182936]
[1756418045391,0.03613,112100.0,112090.0,0.67182936]
[1756418045593,0.57874386,112100.0,112090.0,0.67182936]
[1756418046293,0.57874386,112100.0,112090.0,0.68075552]
[1756418046791,0.57874386,112100.0,112090.0,0.13814166]
[1756418046993,0.57874386,112100.0,112090.0,0.68075552]
[1756418049497,0.57874386,112100.0,112090.0,0.13814166]
[1756418049697,0.57874386,112100.0,112090.0,0.68075552]
[1756418052602,0.03613,112100.0,112090.0,0.68075552]
[1756418052800,0.57874386,112100.0,112090.0,0.68075552]
[1756418054000,0.57874386,112100.0,112090.0,0.13814166]
[1756418054205,0.57874386,112100.0,112090.0,0.68075552]
[1756418062115,0.57874386,112100.0,112090.0,0.13814166]
[1756418062316,0.57874386,112100.0,112090.0,0.68075552]
[1756418062510,0.03613,112100.0,112090.0,0.68075552]
[1756418062712,0.57874386,112100.0,112090.0,0.68075552]
[1756418063811,0.57874386,112100.0,112090.0,0.13814166]
[1756418064306,0.57674386,112100.0,112090.0,0.68075552]
[1756418064509,0.57674386,112100.0,112090.0,0.13814166]
[1756418064705,0.57674386,112100.0,112090.0,0.68075552]
[1756418065419,0.57674386,112100.0,112090.0,0.13814166]
[1756418065613,0.57674386,112100.0,112090.0,0.68075552]
[1756418066114,0.03413,112100.0,112090.0,0.68075552]
[1756418066314,0.57674386,112100.0,112090.0,0.68075552]
[1756418069022,0.03413,112100.0,112090.0,0.68075552]
[1756418069225,0.57674386,112100.0,112090.0,0.68075552]
[1756418069924,0.57674386,112100.0,112090.0,0.13814166]
[1756418070119,0.57674386,112100.0,112090.0,0.68075552]
[1756418072525,0.57674386,112100.0,112090.0,0.67182936]
[1756418072925,0.03413,112100.0,112090.0,0.67182936]
[1756418073125,0.57674386,112100.0,112090.0,0.67182936]
[1756418074127,0.57574386,112100.0,112090.0,0.67182936]
[1756418074825,0.03313,112100.0,112090.0,0.67182936]
[1756418075027,0.57674386,112100.0,112090.0,0.67182936]
[1756418075528,0.57674386,112100.0,112090.0,0.68079894]
[1756418082725,0.03413,112100.0,112090.0,0.68079894]
[1756418082926,0.57674386,112100.0,112090.0,0.68079894]
[1756418087430,0.57674386,112100.0,112090.0,0.13818508]
[1756418087636,0.57674386,112100.0,112090.0,0.68079894]
[1756418087935,0.57674386,112100.0,112090.0,0.67182936]
[1756418088137,0.57674386,112100.0,112090.0,0.1292155]
[1756418088336,0.57674386,112100.0,112090.0,0.67182936]
[1756418088737,0.03413,112100.0,112090.0,0.67182936]
[1756418089034,0.57674386,112100.0,112090.0,0.67182936]
[1756418090037,0.57674386,112100.0,112090.0,0.6806335]
[1756418092737,0.03413,112100.0,112090.0,0.6806335]
[1756418092937,0.57674386,112100.0,112090.0,0.6806335]
[1756418093232,0.03413,112100.0,112090.0,0.6806335]
[1756418093439,0.57674386,112100.0,112090.0,0.13801964]
[1756418093637,0.03413,112100.0,112090.0,0.6806335]
[1756418093837,0.01811,112100.0,112090.0,0.6806335]
[1756418095439,0.03413,112100.0,112090.0,0.6806335]
[1756418096643,0.01811,112100.0,112090.0,0.6806335]
[1756418096841,0.03114,112140.0,112130.0,0.1049337]
[1756418097143,0.03314,112150.0,112140.0,0.1281434]
[1756418097338,0.03314,112150.0,112140.0,0.67075726]
[1756418099045,0.03914,112150.0,112140.0,0.67075726]
[1756418099945,0.04314,112150.0,112140.0,0.67075726]
[1756418101442,0.04314,112150.0,112140.0,0.74310957]
[1756418104546,0.04314,112150.0,112140.0,0.20049571]
[1756418104749,0.04314,112150.0,112140.0,0.74310957]
[1756418105049,0.04314,112150.0,112140.0,0.20049571]
[1756418105348,0.04314,112150.0,112140.0,0.74310957]
[1756418105548,0.02512,112150.0,112140.0,0.74310957]
[1756418105848,0.04314,112150.0,112140.0,0.74310957]
[1756418106248,0.58575386,112150.0,112140.0,0.74310957]
[1756418106643,0.04314,112150.0,112140.0,0.74310957]
[1756418107050,0.58575386,112150.0,112140.0,0.74310957]
[1756418107350,0.58575386,112150.0,112140.0,0.11133231]
[1756418107550,0.81773386,112150.0,112130.0,0.67481859]
[1756418107744,0.57607386,112140.0,112130.0,0.58173386]
[1756418107943,0.03346,112140.0,112130.0,0.54261386]
[1756418108148,0.57607386,112140.0,112130.0,0.58173386]
[1756418109053,0.82607386,112140.0,112130.0,0.58173386]
[1756418109456,0.82907386,112140.0,112130.0,0.58173386]
[1756418109646,0.28646,112140.0,112130.0,0.58173386]
[1756418109847,0.83307386,112140.0,112130.0,0.58173386]
[1756418110052,0.83307386,112140.0,112130.0,0.03912]
[1756418111753,0.58307386,112140.0,112130.0,0.03912]
[1756418112253,0.58307386,112140.0,112130.0,0.58173386]
[1756418112654,0.58307386,112140.0,112130.0,0.03912]
[1756418114248,0.58307386,112140.0,112130.0,0.01573]
[1756418114650,0.58307386,112140.0,112130.0,0.03912]
[1756418114955,0.04046,112140.0,112130.0,0.03912]
[1756418115253,0.58307386,112140.0,112130.0,0.03912]
[1756418116553,1.37568772,112140.0,112120.0,0.54261386]
[1756418116753,1.39007386,112130.0,112120.0,0.67091546]
[1756418118260,1.39307386,112130.0,112120.0,0.67091546]
[1756418119057,1.39507386,112130.0,112120.0,0.67091546]
[1756418119758,1.39507386,112130.0,112120.0,0.58173386]
[1756418122457,0.85246,112130.0,112120.0,0.58173386]
[1756418122657,0.85246,112130.0,112120.0,0.03912]
[1756418122857,1.39507386,112130.0,112120.0,0.58173386]
[1756418129270,0.85246,112130.0,112120.0,0.58173386]
[1756418129463,1.39507386,112130.0,112120.0,0.58173386]
[1756418131169,0.85246,112130.0,112120.0,0.58173386]
[1756418131470,0.85246,112130.0,112120.0,0.03912]
[1756418137172,1.39507386,112130.0,112120.0,0.03912]
[1756418137468,1.39507386,112130.0,112120.0,0.58173386]
[1756418138571,1.39507386,112130.0,112120.0,0.55834386]
[1756418139167,1.39507386,112130.0,112120.0,0.58261386]
[1756418145175,0.85246,112130.0,112120.0,0.58261386]
[1756418145377,1.39507386,112130.0,112120.0,0.58261386]
[1756418150487,0.85246,112130.0,112120.0,0.58261386]
[1756418150683,1.39507386,112130.0,112120.0,0.58261386]
[1756418156684,1.39507386,112130.0,112120.0,0.04]
[1756418156890,1.39507386,112130.0,112120.0,0.58261386]
[1756418158495,1.39507386,112130.0,112120.0,0.04]
[1756418158697,1.39507386,112130.0,112120.0,0.01573]
[1756418161401,1.39507386,112130.0,112100.0,0.04348898]
[1756418161596,0.57680386,112110.0,112100.0,0.64610284]
[1756418161797,1.38868386,112110.0,112100.0,0.66222284]
[1756418163402,1.38868386,112110.0,112100.0,0.60222284]
[1756418163799,1.39068386,112110.0,112100.0,0.05960898]
[1756418164192,1.39068386,112110.0,112100.0,0.60222284]
[1756418164795,1.4620352,112110.0,112100.0,0.60222284]
[1756418165101,1.47291679,112110.0,112100.0,0.60222284]
[1756418168101,1.47291679,112110.0,112100.0,0.58255386]
[1756418168302,1.49097115,112110.0,112100.0,0.58255386]
[1756418172605,0.94835729,112110.0,112100.0,0.58255386]
[1756418172806,1.49097115,112110.0,112100.0,0.58255386]
[1756418179413,1.49097115,112110.0,112100.0,0.03994]
[1756418179611,1.49097115,112110.0,112100.0,0.58255386]
[1756418191421,1.49097115,112110.0,112100.0,0.03994]
[1756418191618,1.49097115,112110.0,112100.0,0.58255386]
[1756418198326,1.49097115,112110.0,112100.0,0.03994]
[1756418198622,1.49097115,112110.0,112100.0,0.58255386]
[1756418201827,0.94835729,112110.0,112100.0,0.58255386]
[1756418202125,1.49097115,112110.0,112100.0,0.58255386]
[1756418202525,0.94835729,112110.0,112100.0,0.58255386]
[1756418202726,1.49097115,112110.0,112100.0,0.58255386]
[1756418205922,1.49097115,112110.0,112100.0,0.67175106]
[1756418209027,1.49097115,112110.0,112100.0,0.58255386]
[1756418212632,0.94835729,112110.0,112100.0,0.58255386]
[1756418212834,1.49097115,112110.0,112100.0,0.58255386]
[1756418213534,1.49097115,112110.0,112100.0,0.03994]
[1756418214938,1.49097115,112110.0,112100.0,0.01612]
[1756418217140,0.01802,112100.0,112090.0,0.69183795]
[1756418217333,0.57615386,112100.0,112090.0,0.74183795]
[1756418217940,0.03354,112100.0,112090.0,0.74183795]
[1756418218140,0.57615386,112100.0,112090.0,0.74183795]
[1756418218641,0.57815386,112100.0,112090.0,0.74183795]
[1756418220638,0.57815386,112100.0,112090.0,0.72177806]
[1756418226045,0.57815386,112100.0,112090.0,0.1791642]
[1756418226236,0.57815386,112100.0,112090.0,0.72177806]
[1756418229343,0.57815386,112100.0,112090.0,0.1791642]
[1756418229543,0.57815386,112100.0,112090.0,0.72177806]
[1756418231242,0.57815386,112100.0,112090.0,0.1791642]
[1756418231544,0.57815386,112100.0,112090.0,0.72177806]
[1756418233341,0.03554,112100.0,112090.0,0.72177806]
[1756418233548,0.57815386,112100.0,112090.0,0.72177806]
[1756418235441,0.57815386,112100.0,112090.0,0.1791642]
[1756418235641,0.57815386,112100.0,112090.0,0.72177806]
[1756418243551,0.03554,112100.0,112090.0,0.72177806]
[1756418243849,0.57815386,112100.0,112090.0,0.72177806]
[1756418244249,0.03554,112100.0,112090.0,0.72177806]
[1756418244450,0.57815386,112100.0,112090.0,0.72177806]
[1756418244653,0.03554,112100.0,112090.0,0.72177806]
[1756418244949,0.57815386,112100.0,112090.0,0.72177806]
[1756418245852,0.03554,112100.0,112090.0,0.72177806]
[1756418246051,0.57815386,112100.0,112090.0,0.72177806]
[1756418246952,0.57815386,112100.0,112090.0,0.1791642]
[1756418247156,0.57815386,112100.0,112090.0,0.72177806]
[1756418256260,0.03554,112100.0,112090.0,0.72177806]
[1756418256451,0.57815386,112100.0,112090.0,0.72177806]
[1756418264777,0.03554,112100.0,112090.0,0.72177806]
[1756418265074,0.57815386,112100.0,112090.0,0.72177806]
[1756418266477,0.57815386,112100.0,112090.0,0.08996]
[1756418266678,0.57815386,112100.0,112090.0,0.58257386]
[1756418267377,0.57815386,112100.0,112090.0,0.67177876]
[1756418267577,0.57815386,112100.0,112090.0,0.58257386]
[1756418268580,0.57815386,112100.0,112090.0,0.67177876]
[1756418270883,0.57815386,112100.0,112090.0,0.58257386]
[1756418272581,0.57815386,112100.0,112090.0,0.03996]
[1756418272875,0.82815386,112100.0,112090.0,0.03996]
[1756418273073,0.57815386,112100.0,112090.0,0.03996]
[1756418273677,0.01802,112090.0,112080.0,0.66532243]
[1756418273882,1.38693386,112090.0,112080.0,0.69191243]
[1756418274380,1.38693386,112090.0,112080.0,0.59269963]
[1756418274875,1.39590908,112090.0,112080.0,0.59369963]
[1756418275076,1.41419783,112090.0,112080.0,0.59369963]
[1756418276283,1.41419783,112090.0,112080.0,0.59269963]
[1756418276780,1.41619783,112090.0,112080.0,0.59269963]
[1756418277081,1.41619783,112090.0,112080.0,0.58384386]
[1756418279584,1.41619783,112090.0,112080.0,0.04123]
[1756418279882,1.41619783,112090.0,112080.0,0.58384386]
[1756418289093,1.41619783,112090.0,112080.0,0.04123]
[1756418294992,1.41619783,112090.0,112080.0,0.01659]
[1756418295799,1.41619783,112090.0,112080.0,0.04101]
[1756418296794,1.41619783,112090.0,112080.0,0.01659]
[1756418305305,0.03346,112080.0,112070.0,0.68164565]
[1756418305607,0.57607386,112080.0,112070.0,0.68164565]
[1756418306708,0.57607386,112080.0,112070.0,0.68264565]
[1756418307113,0.57607386,112080.0,112070.0,0.14003179]
[1756418307407,0.57607386,112080.0,112070.0,0.13903179]
[1756418307598,0.57607386,112080.0,112070.0,0.68164565]
[1756418308000,0.57807386,112080.0,112070.0,0.68164565]
[1756418310406,0.03546,112080.0,112070.0,0.68164565]
[1756418310605,0.57807386,112080.0,112070.0,0.68164565]
[1756418312312,0.03546,112080.0,112070.0,0.68164565]
[1756418312509,0.57807386,112080.0,112070.0,0.68164565]
[1756418314411,0.03546,112080.0,112070.0,0.68164565]
[1756418314712,0.57807386,112080.0,112070.0,0.68164565]
[1756418317710,0.03546,112080.0,112070.0,0.68164565]
[1756418317911,0.57807386,112080.0,112070.0,0.68164565]
[1756418319110,0.57807386,112080.0,112070.0,0.13903179]
[1756418319314,0.57807386,112080.0,112070.0,0.68164565]
[1756418319510,0.57807386,112080.0,112070.0,0.13903179]
[1756418319814,0.57807386,112080.0,112070.0,0.68164565]
[1756418324217,0.03546,112080.0,112070.0,0.68164565]
[1756418324414,0.57807386,112080.0,112070.0,0.68164565]
[1756418328724,0.57807386,112080.0,112070.0,0.13903179]
[1756418328923,0.57807386,112080.0,112070.0,0.68164565]
[1756418338332,0.57807386,112080.0,112070.0,0.13903179]
[1756418338535,0.57807386,112080.0,112070.0,0.68164565]
[1756418341736,0.57807386,112080.0,112070.0,0.13903179]
[1756418342838,0.03546,112080.0,112070.0,0.13903179]
[1756418343035,0.57807386,112080.0,112070.0,0.13903179]
[1756418343839,0.03546,112080.0,112070.0,0.13903179]
[1756418344034,0.57807386,112080.0,112070.0,0.13903179]
[1756418344934,0.57807386,112080.0,112070.0,0.68164565]
[1756418353046,0.57807386,112080.0,112070.0,0.13903179]
[1756418353242,0.57807386,112080.0,112070.0,0.68164565]
[1756418356949,0.57807386,112080.0,112070.0,0.13903179]
[1756418357248,0.57807386,112080.0,112070.0,0.68164565]
[1756418360353,0.57807386,112080.0,112070.0,0.13903179]
[1756418360551,0.57807386,112080.0,112070.0,0.68164565]
[1756418363155,0.57807386,112080.0,112070.0,0.13903179]
[1756418363356,0.57807386,112080.0,112070.0,0.68164565]
[1756418367458,1.36981386,112080.0,112070.0,0.68164565]
[1756418368060,1.36981386,112080.0,112070.0,0.13903179]
[1756418368358,1.36981386,112080.0,112070.0,0.68164565]
[1756418368749,1.38783386,112080.0,112070.0,0.68164565]
[1756418377470,1.38783386,112080.0,112070.0,0.13903179]
[1756418377667,1.38783386,112080.0,112070.0,0.68164565]
[1756418393085,0.84522,112080.0,112070.0,0.68164565]
[1756418393382,1.38783386,112080.0,112070.0,0.68164565]
[1756418395687,0.84522,112080.0,112070.0,0.68164565]
[1756418395984,1.38783386,112080.0,112070.0,0.68164565]
[1756418403887,0.57807386,112080.0,112070.0,0.68164565]
[1756418404290,1.38739386,112080.0,112070.0,0.68164565]
[1756418404490,0.57807386,112080.0,112070.0,0.68164565]
[1756418406191,0.57807386,112080.0,112070.0,0.13903179]
[1756418406392,0.57807386,112080.0,112070.0,0.68164565]
[1756418408392,0.03546,112080.0,112070.0,0.68164565]
[1756418408692,0.57807386,112080.0,112070.0,0.68164565]
[1756418419402,0.03546,112080.0,112070.0,0.68164565]
[1756418419699,0.57807386,112080.0,112070.0,0.13903179]
[1756418426399,0.57807386,112080.0,112070.0,0.68164565]
[1756418426809,0.57807386,112080.0,112070.0,0.13903179]
[1756418429608,1.12068772,112080.0,112070.0,0.13903179]
[1756418440109,0.57807386,112080.0,112070.0,0.13903179]
[1756418440710,0.57807386,112080.0,112070.0,0.68164565]
[1756418446420,0.8445,112080.0,112070.0,0.68164565]
[1756418446616,0.03546,112080.0,112070.0,0.68164565]
[1756418446918,0.03546,112080.0,112070.0,1.25164565]
[1756418447617,0.03346,112080.0,112070.0,1.25164565]
[1756418447818,0.01544,112080.0,112070.0,1.41237207]
[1756418448219,0.01544,112080.0,112070.0,1.41337207]
[1756418449616,0.01544,112080.0,112070.0,2.22237207]
[1756418450725,1.38570386,112090.0,112080.0,0.1050013]
[1756418450927,1.38570386,112090.0,112080.0,0.67231516]
[1756418452626,1.38770386,112090.0,112080.0,0.67231516]
[1756418455127,1.38770386,112090.0,112080.0,0.1297013]
[1756418455426,1.38770386,112090.0,112080.0,0.67231516]
[1756418455637,0.84509,112090.0,112080.0,0.67231516]
[1756418455838,1.38770386,112090.0,112080.0,0.67231516]
[1756418456737,0.84509,112090.0,112080.0,0.67231516]
[1756418456939,1.38770386,112090.0,112080.0,0.67231516]
[1756418457327,1.38770386,112090.0,112080.0,0.67331516]
[1756418458238,1.38770386,112090.0,112080.0,0.67231516]
[1756418459139,1.38570386,112090.0,112080.0,0.67231516]
[1756418459640,1.38770386,112090.0,112080.0,0.67231516]
[1756418463740,0.84509,112090.0,112080.0,0.67231516]
[1756418463941,1.38770386,112090.0,112080.0,0.67231516]
[1756418470246,1.38570386,112090.0,112080.0,0.67231516]
[1756418470648,1.38570386,112090.0,112080.0,0.67331516]
[1756418470848,1.38770386,112090.0,112080.0,0.67331516]
[1756418471548,1.38770386,112090.0,112080.0,0.67231516]
[1756418473050,0.84509,112090.0,112080.0,0.67231516]
[1756418473349,1.38770386,112090.0,112080.0,0.67231516]
[1756418476851,1.38770386,112090.0,112080.0,0.1297013]
[1756418477051,1.38770386,112090.0,112080.0,0.67231516]
[1756418491570,0.84509,112090.0,112080.0,0.67231516]
[1756418491764,1.38770386,112090.0,112080.0,0.67231516]
[1756418496869,0.84509,112090.0,112080.0,0.67231516]
[1756418497168,1.38770386,112090.0,112080.0,0.67231516]
[1756418497371,0.57866386,112090.0,112080.0,0.67231516]
[1756418500271,0.03605,112090.0,112080.0,0.67231516]
[1756418500572,0.57866386,112090.0,112080.0,0.67231516]
[1756418501275,0.57866386,112090.0,112080.0,0.1297013]
[1756418501573,0.03605,112090.0,112080.0,0.67231516]
[1756418501772,0.57866386,112090.0,112080.0,0.67231516]
[1756418502275,0.03605,112090.0,112080.0,0.67231516]
[1756418504074,0.57866386,112090.0,112080.0,0.67231516]
[1756418505876,0.03605,112090.0,112080.0,0.67231516]
[1756418507379,0.03405,112090.0,112080.0,0.67331516]
[1756418508279,0.57666386,112090.0,112080.0,0.67331516]
[1756418508579,0.57666386,112090.0,112080.0,0.67231516]
[1756418508780,0.57666386,112090.0,112080.0,0.67331516]
[1756418512485,0.84046386,112090.0,112080.0,0.67331516]
[1756418512973,0.29785,112090.0,112080.0,0.67331516]
[1756418513176,0.84046386,112090.0,112080.0,0.67331516]
[1756418516690,0.29785,112090.0,112080.0,0.1307013]
[1756418516990,0.84046386,112090.0,112080.0,0.67331516]
[1756418517489,0.29785,112090.0,112080.0,0.67331516]
[1756418517788,0.84046386,112090.0,112080.0,0.67331516]
[1756418521100,0.29785,112090.0,112080.0,0.67331516]
[1756418521299,0.84046386,112090.0,112080.0,0.67331516]
[1756418525400,0.29785,112090.0,112080.0,0.67331516]
[1756418525601,0.84046386,112090.0,112080.0,0.67331516]
[1756418526094,0.29785,112090.0,112080.0,0.67331516]
[1756418526401,0.84046386,112090.0,112080.0,0.67331516]
[1756418527000,0.29785,112090.0,112080.0,0.67331516]
[1756418527400,0.84046386,112090.0,112080.0,0.67331516]
[1756418528204,0.29785,112090.0,112080.0,0.1307013]
[1756418528403,0.27983,112090.0,112080.0,1.53592902]
[1756418528598,0.2638,112090.0,112080.0,1.53592902]
[1756418529598,0.2638,112090.0,112080.0,1.21592902]
[1756418529903,0.2638,112090.0,112080.0,1.53592902]
[1756418532105,0.2638,112090.0,112080.0,1.21592902]
[1756418532305,0.2638,112090.0,112080.0,1.53592902]
[1756418532505,0.2638,112090.0,112080.0,1.69665544]
[1756418533807,0.82189386,112090.0,112080.0,0.83404158]
[1756418534009,0.27928,112090.0,112080.0,0.83404158]
[1756418535101,0.2638,112090.0,112080.0,1.37665544]
[1756418535509,0.2638,112090.0,112080.0,1.69665544]
[1756418535905,0.2638,112090.0,112080.0,1.53592902]
[1756418536409,1.25571386,112100.0,112090.0,0.1283438]
[1756418536600,1.25571386,112100.0,112090.0,0.67095766]
[1756418537609,1.25771386,112100.0,112090.0,0.67095766]
[1756418538709,0.7151,112100.0,112090.0,0.67095766]
[1756418538907,1.25771386,112100.0,112090.0,0.67095766]
[1756418540913,0.7151,112100.0,112090.0,0.67095766]
[1756418541211,1.25771386,112100.0,112090.0,0.67095766]
[1756418541412,0.7151,112100.0,112090.0,0.67095766]
[1756418541817,1.25771386,112100.0,112090.0,0.67095766]
[1756418543816,0.7151,112100.0,112090.0,0.67095766]
[1756418544114,1.25771386,112100.0,112090.0,0.67095766]
[1756418545016,0.7151,112100.0,112090.0,0.67095766]
[1756418545310,1.25771386,112100.0,112090.0,0.67095766]
[1756418545919,0.7151,112100.0,112090.0,0.67095766]
[1756418546113,1.25771386,112100.0,112090.0,0.67095766]
[1756418547119,1.25771386,112100.0,112090.0,0.67195766]
[1756418547818,1.25771386,112100.0,112090.0,0.67095766]
[1756418548217,0.7151,112100.0,112090.0,0.67095766]
[1756418548418,1.25771386,112100.0,112090.0,0.67095766]
[1756418550922,0.7151,112100.0,112090.0,0.67095766]
[1756418551121,1.25771386,112100.0,112090.0,0.67095766]
[1756418551317,0.6816,112100.0,112090.0,0.67195766]
[1756418551516,0.71525,112100.0,112090.0,0.92195766]
[1756418551722,0.71325,112100.0,112090.0,1.24195766]
[1756418552924,0.71325,112100.0,112090.0,1.23195766]
[1756418553623,0.03365,112100.0,112090.0,1.23195766]
[1756418558026,0.01563,112100.0,112090.0,1.23195766]
[1756418562331,1.63283386,112110.0,112090.0,1.32116146]
[1756418562533,1.64846386,112110.0,112100.0,0.67269966]
[1756418564634,1.65046386,112110.0,112100.0,0.67269966]
[1756418565638,1.53340367,112110.0,112100.0,0.55563947]